Cogmind - Beta 15 *** ADVENTURER MODE // 2025.06.20 @ 09:36:16 Player: Kate Sidhe Result: Destroyed by G-47 Trooper with Particle Gun Performance ------------- Evolutions (0) 0 Regions Visited (1) 200 Robots Destroyed (7) 35 Value Destroyed (251) 251 Prototype IDs (0) 0 Alien Tech Used (0) 0 Bonus (0) 0 TOTAL SCORE: 486 Bonus ------- None Cogmind --------- Core Integrity 0/250 Matter 268/300 Energy 62/100 System Corruption 0% Temperature Cool (39) Movement Core (50) Location -10/Materials Parts ------- > --- POWER (1) -------- (None) > --- PROPULSION (2) --- (None) > --- UTILITY (2) ------ ECM Suite Propulsion Shielding > --- WEAPON (2) ------- (None) > --- INVENTORY (5) ---- Small Storage Unit Small Laser Peak State ------------ > --- POWER ------------ Light Ion Engine > --- PROPULSION ------- Light Treads Light Treads > --- UTILITY ---------- Small Storage Unit Terrain Scanner > --- WEAPON ----------- Medium Laser Light Assault Rifle > --- INVENTORY -------- Light Ion Engine Medium Laser [Rating: 7] Favorites ----------- Power Light Ion Engine Engine Light Ion Engine Propulsion Light Treads Treads Light Treads Utility Terrain Scanner Device Terrain Scanner Storage Small Storage Unit Protection Propulsion Shielding Weapon Light Assault Rifle Energy Gun Medium Laser Ballistic Gun Light Assault Rifle Build | -11 -10 ------- Run | Yrd Mat Slots Evolved . | . . Power . | . . Propulsion . | . . Utility . | . . Weapon . | . . Parts Attached 11 | 6 5 Power 1 | 1 . Engine 1 | 1 . Core . | . . Reactor . | . . Propulsion 2 | 2 . Treads 2 | 2 . Leg . | . . Wheel . | . . Hover . | . . Flight . | . . Utility 5 | 1 4 Device 3 | . 3 Storage 1 | 1 . Processor . | . . Hackware . | . . Protection 1 | . 1 Artifact . | . . Weapon 3 | 2 1 Energy Gun 2 | 1 1 Energy Cannon . | . . Ballistic Gun 1 | 1 . Ballistic Cannon . | . . Launcher . | . . Special Weapon . | . . Impact Weapon . | . . Slashing Weapon . | . . Piercing Weapon . | . . Special Melee Weapon . | . . Unidentified Prototypes . | . . Parts Lost 8 | . 8 Power 1 | . 1 Propulsion 2 | . 2 Utility 2 | . 2 Weapon 3 | . 3 Highest Loss Streak 4 | . 4 To Critical Strikes . | . . Average Backups 2 | 1 2 Power . | . . Propulsion . | . . Utility 2 | . 2 Weapon . | . . Tool/Special . | . . Unused Backups 3 | . 3 Power 1 | . 1 Propulsion 1 | . 1 Utility . | . . Weapon 1 | . 1 Tool/Special . | . . Average Slot Usage (%) 88 | . 88 Engine 11 | . 11 Treads 23 | . 23 Device 24 | . 24 Storage 1 | . 1 Energy Gun 12 | . 12 Ballistic Gun 13 | . 13 Peak Build Rating 7 | 6 7 Average Rating 5 | 5 6 On Entrance 3 | . 6 Naked Turns 2 | . 2 Heaviest Build 12 | 11 12 Greatest Support 40 | 40 40 Greatest Overweight (x) 1 | . 1 Average Overweight (x) . | . . Largest Inventory Capacity 8 | 8 8 Average Capacity 5 | 7 5 Most Carried 5 | 5 4 Average Carried 2 | 1 2 Final Capacity 8 | 8 5 Final Carried 2 | 2 2 Class Distribution -------------------- 100% | Mutant Dominant Class ---------------- Mutant | -10/Materials Resources | -11 -10 ----------- Run | Yrd Mat Matter Collected 236 | 207 29 Remotely . | . . Salvage Created 269 | . 269 Parts 13 | . 13 Haulers Intercepted . | . . Recyclers Shooed . | . . Parts Field Recycled . | . . Retrieved Matter . | . . Parts Self-Destructed . | . . Prevented . | . . Kills | -11 -10 ------- Run | Yrd Mat Combat Hostiles Destroyed 7 | . 7 Guns 7 | . 7 Classes Destroyed 1 | . 1 Grunt 7 | . 7 Best Kill Streak 3 | . 3 Combat Bots Only 3 | . 3 Max Kills in Single Turn 1 | . 1 Gunslinging . | . . Exploded . | . . Melee . | . . Uniques/NPCs Destroyed . | . . Combat | -11 -10 -------- Run | Yrd Mat Hostile Shots Fired 141 | . 141 Missed 51 | . 51 Hits 90 | . 90 Projectile 90 | . 90 Critical Strikes 1 | . 1 Damage Taken 846 | . 846 Core 251 | . 251 Absorbed by Shields . | . . Ignored by Resistances 258 | . 258 Regen/Repaired (Parts) 7 | . 7 Core Remaining (%) 100 | 100 . Volleys Fired 58 | . 58 Largest 2 | . 2 Hottest 70 | . 70 Shots Fired 77 | . 77 Gun 77 | . 77 Cannon . | . . Launcher . | . . Special . | . . Kinetic 48 | . 48 Thermal 29 | . 29 Explosive . | . . Electromagnetic . | . . Robot Hit Streak 34 | . 34 Robot Miss Streak 2 | . 2 Penetration Max . | . . Secondary Targets 1 | . 1 Max Gunslinging Chain 1 | . 1 Shots Hit Robots 67 | . 67 Core Hits 17 | . 17 Critical Kills . | . . Critical Parts Destroyed 1 | . 1 Critical Strikes 3 | . 3 Burn 2 | . 2 Destroy 1 | . 1 Melee Attacks . | . . Impact . | . . Slashing . | . . Piercing . | . . Sneak Attacks . | . . Combat Hostiles . | . . Follow-up Attacks . | . . Damage Inflicted 683 | . 683 Guns 680 | . 680 Cannons . | . . Explosions . | . . Melee . | . . Ramming 3 | . 3 Kinetic 342 | . 342 Thermal 338 | . 338 Explosive . | . . Electromagnetic . | . . Impact . | . . Slashing . | . . Piercing . | . . Highest Corruption . | . . Average Corruption . | . . Corruption Purged . | . . Corruption Blocked . | . . Overload Shots . | . . Overflow Damage . | . . Projectiles . | . . Explosions . | . . Melee . | . . Knockbacks . | . . Impact . | . . Kinetic . | . . Secondary . | . . Self-Inflicted Damage 1 | . 1 Shots . | . . Rammed 2 | . 2 Targets Rammed 2 | . 2 Kicked . | . . Crushed . | . . Highest Temperature 188 | . 188 Average Temperature 48 | . 48 Received Heat Transfer 621 | . 621 Siege Activations . | . . Martial Activations . | . . Shielding Activations . | . . Robots Disrupted . | . . Combat Hostiles . | . . Robots Corrupted . | . . Combat Hostiles . | . . Parts Fried . | . . Impact Corruptions . | . . Robots Melted . | . . Combat Hostiles . | . . Parts Melted 2 | . 2 Heat Transferred 1073 | . 1073 Parts Sabotaged . | . . Parts Stolen . | . . Parts Stripped . | . . Power Chain Reactions . | . . Alert | -11 -10 ------- Run | Yrd Mat Maximum Alert Level . | . . Low Security (%) 100 | 100 100 Level 1 . | . . Level 2 . | . . Level 3 . | . . Level 4 . | . . Level 5 . | . . High Security . | . . Max Security . | . . Peak Influence 70 | . 70 Initial . | . . Average 9 | . 11 Influence Increases 200 | . 200 Destroy 0b10 Robot/C 140 | . 140 Destroy Leader 50 | . 50 Trap Triggered on 0b10 10 | . 10 Influence Decreases 180 | . 180 Time Decay 130 | . 130 Lost Part 50 | . 50 Squads Dispatched 4 | . 4 Investigation 4 | . 4 Extermination . | . . Reinforcement . | . . Assault . | . . Garrison . | . . Intercept . | . . Searches Triggered . | . . Construction Impeded . | . . Haulers Reinforced . | . . Active Scanning Responses . | . . Cargo Convoy Interrupts . | . . Stealth | -11 -10 --------- Run | Yrd Mat Distress Signals 1 | . 1 Communications Jammed . | . . Distress Signals . | . . Times Spotted 13 | . 13 Peak Tracking Total 7 | . 7 Tactical Retreats . | . . Traps | -11 -10 ------- Run | Yrd Mat Traps Triggered . | . . Indirectly . | . . Trap Hack Attempts . | . . Triggered . | . . Disarmed . | . . Reprogrammed 5 | . 5 Reused 1 | . 1 Traps Extracted . | . . Installed . | . . Triggered 1 | . 1 Machines | -11 -10 ---------- Run | Yrd Mat Machines Disabled . | . . Max in Single Turn . | . . Machines Repaired . | . . Machines Dismantled . | . . Machines Sabotaged . | . . Overloaded Fab Kills . | . . Hacking | -11 -10 --------- Run | Yrd Mat Machines Accessed 4 | . 4 Terminals 1 | . 1 Fabricators . | . . Repair Stations 1 | . 1 Recycling Units 2 | . 2 Scanalyzers . | . . Garrison Access . | . . Total Hacks 15 | . 15 Successful 12 | . 12 Failed 3 | . 3 Catastrophic 2 | . 2 Database Lockouts . | . . Manual . | . . Terminals 4 | . 4 Fabricators . | . . Repair Stations 3 | . 3 Recycling Units 8 | . 8 Scanalyzers . | . . Garrison Access . | . . Terminal Hacks 2 | . 2 Emergency Access Points 1 | . 1 Reprogram Traps 1 | . 1 Fabricator Hacks . | . . Repair Station Hacks 3 | . 3 Scan Component 2 | . 2 Repair 1 | . 1 Recycling Unit Hacks 7 | . 7 Recycle Component 3 | . 3 Process 1 | . 1 Report Inventory 1 | . 1 Retrieve Matter 1 | . 1 Retrieve Components 1 | . 1 Scanalyzer . | . . Garrison Access Hacks . | . . Unauthorized Hacks . | . . Terminals . | . . Fabricators . | . . Repair Stations . | . . Recycling Units . | . . Scanalyzers . | . . Garrison Access . | . . Data Cores Recovered . | . . Used . | . . Hacking Detections 4 | . 4 Full Trace Events 4 | . 4 Feedback Events . | . . Feedback Blocked . | . . Robot Schematics Acquired . | . . Robots Built . | . . Authchips . | . . Time . | . . Total Robot Build Rating . | . . Part Schematics Acquired . | . . Parts Built . | . . Authchips . | . . Time . | . . Total Part Build Rating . | . . Parts Repaired 1 | . 1 Time 26 | . 26 Parts Recycled 3 | . 3 Recycled Matter 55 | . 55 Retrieved Matter 55 | . 55 Retrieved Components 3 | . 3 Parts Scanalyzed . | . . Part Schematics Acquired . | . . Parts Damaged . | . . Bothacking | -11 -10 ------------ Run | Yrd Mat Used RIF Installer . | . . Robots Hacked . | . . Non-combat . | . . Combat . | . . Robot Hacks Applied . | . . Relay Couplers Released . | . . Fabnet Peak Effective % . | . . Robots Rewired . | . . Allies Hacked . | . . Hacks Repelled . | . . Allies | -11 -10 -------- Run | Yrd Mat Total Allies . | . . Largest Group . | . . Highest-Rated Group . | . . Highest-Rated Ally . | . . Total Orders . | . . Ally Attacks . | . . Total Damage . | . . Kills . | . . Allies Corrupted . | . . Allies Melted . | . . Intel | -11 -10 ------- Run | Yrd Mat Active Infowar (turns) 541 | . 541 Terrain 541 | . 541 Structural 462 | . 462 Robot Analysis Total . | . . Derelict Logs Recovered . | . . Drone Launches . | . . Drone Recoveries . | . . Exploration | -11 -10 ------------- Run | Yrd Mat Turns Passed 703 | 135 568 Spaces Moved 364 | 93 271 Core 31 | 24 7 Treads 333 | 69 264 Legs . | . . Wheels . | . . Hover . | . . Flight . | . . Fastest Speed 50 | 50 50 Average Speed 151 | 131 157 Slowest Speed 160 | 160 160 Overloaded Moves . | . . Propulsion Burnouts . | . . Robots Hopped . | . . Potential Cave-ins . | . . Cave-ins Triggered . | . . Exploration Rate (%) 20 | 6 34 Regions Visited 1 Branch Regions . Pre-discovered Areas . | . . Known Exits Taken . | . . Unknown Exits Taken 1 | 1 . Scrap Searched . | . . Spaces Dug . | . . Terrain Destroyed . | . . Melee . | . . Projectile . | . . AOE . | . . Terrain Rammed . | . . Walls Destroyed . | . . Machines Disabled . | . . Actions | -11 -10 --------- Run | Yrd Mat Total 450 | 106 344 Wait . | . . Move 363 | 92 271 Hop . | . . Pick Up 16 | 8 8 Fast Attach . | . . Attach 10 | 6 4 Detach . | . . Swap 1 | . 1 Drop . | . . Fire 58 | . 58 Melee . | . . Ram 2 | . 2 Kick . | . . Crush . | . . Escape Stasis . | . . Rewire . | . . Trap . | . . Miscellaneous . | . . Route ------- -11/Scrapyard -10/Materials History --------- Turn | Location | Event 5 | -11/Scrapyard | Discovered new exit (range 15) 136 | -11/Scrapyard | Entered Materials 287 | -10/Materials | Repaired ECM Suite 311 | -10/Materials | Build established: Mutant 649 | -10/Materials | Core integrity fell below 50% 669 | -10/Materials | Lost 4 parts (2n1u1w) 690 | -10/Materials | Core integrity fell below 20% 704 | -10/Materials | Destroyed by G-47 Trooper with Particle Gun Last Messages --------------- 00674_ Acquired Particle Gun. 00675_ K-01 Serf collects debris. 00681_ W-16 Scout distress signal alerts nearby ally. 00685_ K-01 Serf collects debris. 00689_ Slammed into G-34 Mercenary. 00689_ Destabilizing: Core damaged (-12). 00690_ Slammed into G-34 Mercenary. 00691_ K-01 Serf collects debris. 00693_ Terrain Scanner destroyed. 00698_ K-01 Serf collects debris. 00699_ G-34 Mercenary overheating. 00700_ G-34 Mercenary heat short circuits Ion Engine. 00700_ G-34 Mercenary overheating. 00701_ K-01 Serf collects debris. 00701_ Particle Gun destroyed. 00702_ G-34 Mercenary heat damages Aluminum Leg. 00702_ Acquired Sml. Laser. 00704_ K-01 Serf collects debris. Map ----- +----------------------------------------------------+ | ?????????????????????????????????????????????????? | | ?????????????????????????????????????????????????? | | ?????????????????????????????????????????????????? | | ?????????????????????????????????????????????????? | | ?????????????????????????????????????????????????? | | ?????????????????????????????????????????????????? | | ?????????????????????????????????????????????????? | | ?????????????????????????????????????????????????? | | ?????????????????????????????????????????????????? | | ?????????????????????????????????????????????????? | | ?????????????????????????????????????????????????? | | ????????????????????????????#????????????????????? | | ?????????????????????????????????????????????????? | | ??????????????????????????????#??????????????????? | | ??????????????????#??????????????????????????????? | | ?????????????????#########???????????????????????? | | ?????????????????#########?????????#?#???????????? | | ??????????????? ? # ##???????????????????????? | | ????????????????? # ???????????????????????? | | ???????????????? # ????????????#????????????? | | ????????????? ?? # ??????????? ?????????????? | | ?????????? ######## ####### ??????????????? | | ?????? # ######### ############??????????????? | | ??????## # ##???#??????????? | | ??????## ^ !%#k ##?#???#????????? | | ??????## ^ w !gg!@ !##??#???????????? | | ??????###????+###### g#* ## ?????????????? | | ????????????? ### ############?#??#?????????? | | ?????????????????### ############ ####?????????? | | ?????????????????## % ####"T"#### ####?????????? | | ??????????????"??## ?????????? | | ?????????????????## ?????????? | | ?????????????????## " ????? ????? | | ?????????????????## T ??????????? | | ?????????????????###### " " ??????????? | | ?????????????????###### """ ? ??#???? | | ?????????????????????## "" ?????? | | ??????????????????#??## """ ???????? | | ???????????????????#?## "" ?? ????? | | ???????????############ """ ? ???????? | | ???????????############ """ ###??#?????? | | ??????????? """ ##########?? | | ??????????? " ############ | | ?????????? "# ##?? | | ?????????? #################### T# ###? | | ??????????##################### " "# ##?? | | ???????????????????## # """ ## ##?? | | ???????????????????## """ """ # "" ##= ##?? | | ?????????????????#?## """ """ # """ #%% ##?? | | ??????????????????### """ """ # "" + ##?? | +----------------------------------------------------+ Best States ------------- Heat Dissipation 25 Energy Generation 10 Energy Capacity 125 Matter Stores 300 Matter Capacity 300 Sight Range 16 Terrain Scan Range 14 Terrain Scan Density 10 Resistance: KI 20 Resistance: TH 20 Resistance: EX 20 Resistance: EM 20 Resistance: I 20 Resistance: S 20 Resistance: P 20 Evasion (%) 50 Recoil Reduction 2 Offensive Hacking 10 Item Schematics ----------------- None Robot Schematics ------------------ None Fabricated ------------ Nothing Repaired ---------- ECM Suite | 65% | -10/Materials Alien Tech Used ----------------- None Achievements -------------- None Challenges ------------ None Game ------ Seed TimingBoltStreamer Manual? 0 Play Time 00:08:00 Cumulative 1.8 hours Start 2025.06.20 @ 09:30:15 End 2025.06.20 @ 09:36:16 Sessions 1 Manual Loads 0 Difficulty Adventurer Special Mode None Game No. 5 Rogue 0 Adventurer 5 Explorer 0 Win Type - Total 0 Types 0/0/0/0/0/0/0/0/0/0 Lore% 1 Gallery% 5 Achievement% 6 Wizard Run 0 Options --------- Layout 1 ASCII 0 Keyboard 0 Movement Arrows Keybinds 0 Fullscreen 1 Font 24/Smallcaps Map View 50x35 Zoom Use 0% Tactical HUD 1 Map Filters NONE Filters NONE Steam 1 RUN: 101874c9-7549-48f3-8b4d-1cc370c513c6